bitfinex/quotes_BTCUSD_20241229
["timestamp","ask_amount","ask_price","bid_price","bid_amount"]
[1735483003225,0.11179664,94404.0,94390.0,2.552e-05]
[1735483003372,0.11516598,94403.0,94390.0,2.552e-05]
[1735483004008,0.10398632,94391.0,94390.0,2.552e-05]
[1735483004603,0.11179664,94391.0,94390.0,2.552e-05]
[1735483006941,0.12841061,94391.0,94390.0,2.552e-05]
[1735483008522,0.12841061,94391.0,94390.0,0.00102552]
[1735483008729,0.15025167,94391.0,94390.0,0.00102552]
[1735483009369,0.14125167,94391.0,94390.0,2.552e-05]
[1735483010288,0.14525167,94391.0,94390.0,2.552e-05]
[1735483010739,0.13241061,94391.0,94390.0,2.552e-05]
[1735483012912,0.12460029,94391.0,94390.0,2.552e-05]
[1735483013323,0.13239775,94391.0,94390.0,2.552e-05]
[1735483013941,0.11578378,94391.0,94390.0,2.552e-05]
[1735483015671,0.22778378,94391.0,94390.0,2.552e-05]
[1735483015876,0.25056216,94391.0,94390.0,2.552e-05]
[1735483016873,0.24656216,94391.0,94390.0,2.552e-05]
[1735483017049,0.13456216,94391.0,94390.0,2.552e-05]
[1735483017278,0.13740297,94391.0,94390.0,0.00102552]
[1735483017841,0.12840297,94391.0,94390.0,2.552e-05]
[1735483018382,0.13740297,94391.0,94390.0,0.00102552]
[1735483021032,0.12060551,94391.0,94390.0,2.552e-05]
[1735483021227,0.12842623,94391.0,94390.0,2.552e-05]
[1735483021435,0.13742623,94391.0,94390.0,2.552e-05]
[1735483022059,0.12842623,94391.0,94390.0,2.552e-05]
[1735483022427,0.13642623,94391.0,94390.0,2.552e-05]
[1735483023705,0.34831023,94391.0,94390.0,2.552e-05]
[1735483023875,0.33169104,94391.0,94390.0,2.552e-05]
[1735483024077,0.10398632,94391.0,94390.0,2.552e-05]
[1735483024697,0.31587032,94391.0,94390.0,2.552e-05]
[1735483025317,0.32087032,94391.0,94390.0,2.552e-05]
[1735483026227,0.31587032,94391.0,94390.0,2.552e-05]
[1735483026462,0.31687032,94391.0,94390.0,2.552e-05]
[1735483026882,0.211927,94372.0,94371.0,0.1295]
[1735483027053,0.211956,94359.0,94358.0,0.0752]
[1735483027257,0.31594232,94359.0,94358.0,0.0752]
[1735483027891,0.211956,94359.0,94358.0,0.0752]
[1735483028123,0.211952,94361.0,94358.0,0.0752]
[1735483028295,0.112,94396.0,94358.0,0.0752]
[1735483028296,0.016618,94382.0,94358.0,0.1752]
[1735483028524,0.211909,94380.0,94372.0,0.19459156]
[1735483028733,0.21192,94376.0,94372.0,0.19459156]
[1735483029127,0.211922,94374.0,94372.0,0.19459156]
[1735483029400,0.211922,94374.0,94358.0,0.0752]
[1735483029401,0.31590832,94374.0,94364.0,0.19459156]
[1735483029570,0.211933,94370.0,94364.0,0.19459156]
[1735483030410,0.211933,94370.0,94360.0,0.12971268]
[1735483030810,0.21184284,94370.0,94360.0,0.12971268]
[1735483030947,0.31590832,94374.0,94364.0,0.002]
[1735483031143,0.211911,94379.0,94364.0,0.002]
[1735483031370,0.211911,94379.0,94369.0,0.12971268]
[1735483031573,5.087e-05,94391.0,94369.0,0.12971268]
[1735483031574,0.01661621,94376.0,94369.0,0.12971268]
[1735483032747,0.21192,94375.0,94369.0,0.12971268]
[1735483033204,0.21192,94375.0,94370.0,0.0752]
[1735483034668,0.42366688,94375.0,94370.0,0.0752]
[1735483037459,0.42366688,94375.0,94370.0,0.0772]
[1735483038273,0.42366688,94375.0,94370.0,0.0752]
[1735483038619,0.42385,94373.0,94370.0,0.0772]
[1735483039246,0.42385,94373.0,94370.0,0.0752]
[1735483039875,0.211929,94371.0,94370.0,0.0752]
[1735483040063,0.31591532,94371.0,94370.0,0.0752]
[1735483040262,0.211929,94371.0,94370.0,0.0752]
[1735483041100,0.211929,94371.0,94370.0,0.0772]
[1735483041728,0.211929,94371.0,94370.0,0.0752]
[1735483042517,0.211925,94373.0,94370.0,0.0772]
[1735483043694,0.42385,94373.0,94370.0,0.0772]
[1735483044885,0.42385,94373.0,94370.0,0.0752]
[1735483045291,0.42385,94373.0,94370.0,0.0772]
[1735483045789,0.31591532,94371.0,94370.0,0.002]
[1735483046398,0.31591532,94371.0,94370.0,0.0001706]
[1735483047242,0.33253409,94371.0,94370.0,0.0001706]
[1735483049543,0.33353409,94371.0,94370.0,0.0001706]
[1735483049953,0.01761877,94371.0,94370.0,0.0486706]
[1735483051025,0.12160509,94371.0,94370.0,0.0486706]
[1735483052027,0.12060509,94371.0,94370.0,0.0001706]
[1735483052424,0.12060509,94371.0,94369.0,0.0001706]
[1735483052425,0.211931,94370.0,94369.0,2e-07]
[1735483052631,0.31591732,94370.0,94369.0,2e-07]
[1735483053861,0.42791732,94370.0,94369.0,2e-07]
[1735483054227,0.31591732,94370.0,94369.0,2e-07]
[1735483056983,0.33253714,94370.0,94369.0,2e-07]
[1735483057884,0.33753714,94370.0,94369.0,2e-07]
[1735483058284,0.33253714,94370.0,94369.0,2e-07]
[1735483059919,0.33753714,94370.0,94369.0,2e-07]
[1735483061999,0.02161982,94370.0,94369.0,0.0798002]
[1735483063844,0.211931,94370.0,94369.0,0.0798002]
[1735483064304,0.214931,94370.0,94369.0,0.0798002]
[1735483064917,0.221931,94370.0,94369.0,0.0798002]
[1735483065379,0.222931,94370.0,94369.0,0.0798002]
[1735483066969,0.011,94370.0,94369.0,0.0798002]
[1735483067491,0.01,94370.0,94369.0,0.0798002]
[1735483068346,0.011,94370.0,94369.0,0.0798002]
[1735483070699,0.01,94370.0,94369.0,0.0798002]
[1735483071108,0.01,94370.0,94369.0,0.0828002]
[1735483075219,0.423848,94374.0,94369.0,0.0828002]
[1735483075220,0.211924,94374.0,94369.0,0.0828002]
[1735483075433,0.211924,94374.0,94369.0,0.0030002]
[1735483075434,0.211927,94372.0,94369.0,0.0030002]
[1735483075580,0.211931,94370.0,94369.0,0.0030002]
[1735483075990,0.211924,94374.0,94370.0,0.125]
[1735483076230,0.423848,94374.0,94370.0,0.125]
[1735483076414,0.211924,94374.0,94370.0,0.125]
[1735483076624,0.213924,94374.0,94370.0,0.125]
[1735483077621,0.211925,94373.0,94370.0,0.125]
[1735483077902,0.211929,94371.0,94370.0,0.125]
[1735483078115,0.31591532,94371.0,94369.0,2e-07]
[1735483078328,0.10398632,94370.0,94369.0,2e-07]
[1735483078534,0.211934,94369.0,94350.0,0.20661288]
[1735483078724,0.13558688,94368.0,94350.0,0.20661288]
[1735483079810,0.211974,94351.0,94350.0,0.20661288]
[1735483080110,0.211974,94351.0,94350.0,0.0769002]
[1735483080466,0.2285928,94351.0,94350.0,0.0769002]
[1735483081103,0.2285928,94351.0,94350.0,0.07705289]
[1735483082351,0.0166188,94351.0,94350.0,0.28943818]
[1735483082486,0.001,94368.0,94360.0,0.2]
[1735483082692,0.212937,94368.0,94360.0,0.2]
[1735483082891,0.211937,94368.0,94360.0,0.2]
[1735483083102,0.211929,94372.0,94360.0,0.2]
[1735483083304,8.54e-05,94373.0,94366.0,0.1]
[1735483083515,8.54e-05,94373.0,94367.0,0.125]
[1735483084741,0.211927,94372.0,94367.0,0.125]
[1735483084942,0.423854,94372.0,94367.0,0.125]
[1735483085145,0.211931,94370.0,94356.0,0.0782]
[1735483085347,0.21196,94357.0,94356.0,0.0782]
[1735483086723,0.21196,94357.0,94356.0,0.0812]
[1735483087147,0.211949,94362.0,94356.0,0.0812]
[1735483087325,0.211945,94364.0,94356.0,0.1812]
[1735483087990,0.211938,94368.0,94357.0,0.03578654]
[1735483088189,8.54e-05,94373.0,94363.0,0.1]
[1735483088399,8.54e-05,94373.0,94366.0,0.1]
[1735483088622,8.54e-05,94373.0,94367.0,0.0468]
[1735483088754,8.54e-05,94373.0,94368.0,0.0782]
[1735483090463,0.0010854,94373.0,94368.0,0.0782]
[1735483091456,0.2130104,94373.0,94368.0,0.0782]
[1735483092210,0.2120104,94373.0,94368.0,0.0782]
[1735483092615,0.2120104,94373.0,94368.0,0.0802]
[1735483093037,0.211929,94371.0,94368.0,0.002]
[1735483093636,8.54e-05,94373.0,94368.0,0.002]
[1735483093843,8.54e-05,94373.0,94369.0,0.0755]
[1735483097023,8.54e-05,94373.0,94370.0,0.04052127]
[1735483097229,8.54e-05,94373.0,94370.0,0.1454]
[1735483098391,0.211927,94372.0,94370.0,0.0454]
[1735483099205,8.54e-05,94373.0,94370.0,0.0454]
[1735483099429,8.54e-05,94373.0,94370.0,0.1454]
[1735483101142,8.54e-05,94373.0,94370.0,0.1474]
[1735483102352,8.54e-05,94373.0,94372.0,0.2]
[1735483104413,8.54e-05,94373.0,94372.0,0.19940447]
[1735483106437,8.54e-05,94373.0,94372.0,0.20240447]
[1735483110122,8.54e-05,94373.0,94372.0,0.38699079]
[1735483110324,8.53e-05,94375.0,94374.0,0.1]
[1735483110546,8.53e-05,94375.0,94374.0,0.38399079]
[1735483111153,8.53e-05,94375.0,94374.0,0.48797711]
[1735483111657,8.53e-05,94375.0,94374.0,0.38399079]
[1735483111874,8.53e-05,94375.0,94374.0,0.0806]
[1735483112028,0.211922,94374.0,94372.0,0.003]
[1735483113323,0.211922,94374.0,94370.0,0.0454]
[1735483113933,0.423845,94374.0,94370.0,0.0454]
[1735483114347,0.211922,94374.0,94370.0,0.0454]
[1735483114968,0.423845,94374.0,94370.0,0.0454]
[1735483115564,8.53e-05,94375.0,94364.0,0.12971268]
[1735483115565,0.211942,94365.0,94364.0,0.12971268]
[1735483115768,0.211946,94364.0,94360.0,0.1]
[1735483116138,0.211929,94371.0,94355.0,0.0482]
[1735483116366,0.211951,94361.0,94360.0,0.22971268]
[1735483116706,0.211951,94361.0,94360.0,0.1]
[1735483117001,0.10398632,94370.0,94355.0,0.0482]
[1735483117166,0.423926,94356.0,94351.0,0.1001708]
[1735483118385,0.211963,94356.0,94351.0,0.1001708]
[1735483118784,0.211967,94354.0,94351.0,0.0001708]
[1735483119002,0.10398632,94353.0,94351.0,0.0001708]
[1735483119587,0.211972,94352.0,94351.0,0.0001708]
[1735483119926,0.31595832,94352.0,94351.0,0.0001708]
[1735483120699,0.211972,94352.0,94351.0,0.0001708]
[1735483122247,0.01661931,94353.0,94351.0,0.0001708]
[1735483122450,0.01661931,94353.0,94351.0,0.09957527]
[1735483122655,0.0936059,94380.0,94356.0,0.1]
[1735483122860,0.0936059,94380.0,94368.0,0.09940447]
[1735483123166,0.0936059,94388.0,94370.0,0.09940447]
[1735483123354,0.211922,94374.0,94368.0,0.09940447]
[1735483123739,0.211922,94374.0,94354.0,0.211965]
[1735483123740,0.10398632,94373.0,94354.0,0.0469]
[1735483123946,0.10398632,94373.0,94360.0,0.12971268]
[1735483123947,0.01040716,94372.0,94360.0,0.12971268]
[1735483124122,0.423892,94364.0,94360.0,0.12971268]
[1735483124324,0.21196,94358.0,94354.0,0.0469]
[1735483124776,0.21196,94358.0,94354.0,0.1469]
[1735483125561,0.211957,94359.0,94354.0,0.1469]
[1735483125795,0.02160337,94389.0,94354.0,0.1469]
[1735483126005,0.211962,94357.0,94354.0,0.1]
[1735483127295,0.211962,94357.0,94350.0,0.00032349]
[1735483127735,0.211962,94357.0,94354.0,0.1]
[1735483128082,0.211962,94357.0,94354.0,0.103]
[1735483128500,0.211957,94359.0,94354.0,0.103]
[1735483129131,0.211951,94362.0,94356.0,0.09940447]
[1735483129349,0.01661767,94370.0,94365.0,0.09940447]
[1735483129560,0.01661767,94370.0,94369.0,0.09940447]
[1735483129899,0.211914,94378.0,94369.0,0.14630447]
[1735483130437,0.211899,94385.0,94374.0,0.19940447]
[1735483131223,0.21191,94380.0,94374.0,0.19940447]
[1735483131428,0.211899,94385.0,94374.0,0.19940447]
[1735483131699,0.211899,94385.0,94374.0,0.1]
[1735483132508,0.0010853,94375.0,94374.0,0.1]
[1735483133920,8.53e-05,94375.0,94373.0,0.09940447]
[1735483134140,8.53e-05,94375.0,94374.0,0.1]
[1735483134342,0.423845,94374.0,94370.0,0.0755]
[1735483134675,0.423845,94374.0,94369.0,0.0469]
[1735483135673,0.423845,94374.0,94373.0,0.1]
[1735483135970,0.423845,94374.0,94370.0,0.002]
[1735483136162,0.423845,94374.0,94373.0,0.1]
[1735483136392,0.423845,94374.0,94370.0,0.002]
[1735483136541,0.423845,94374.0,94373.0,0.1]
[1735483136965,0.211922,94374.0,94373.0,0.1]
[1735483137858,8.53e-05,94375.0,94374.0,0.1]
[1735483140603,8.53e-05,94375.0,94369.0,0.0469]
[1735483140604,0.423845,94374.0,94369.0,0.0469]
[1735483140820,0.211942,94365.0,94364.0,0.12971268]
[1735483141024,0.211939,94367.0,94360.0,0.0501]
[1735483141233,0.211947,94363.0,94360.0,0.0501]
[1735483141640,0.423894,94363.0,94360.0,0.0501]
[1735483142103,0.211947,94363.0,94360.0,0.0501]
[1735483142317,0.45271911,94363.0,94360.0,0.0501]
[1735483143106,0.45271911,94363.0,94360.0,0.0511]
[1735483143308,0.423894,94363.0,94360.0,0.0501]
[1735483143517,0.211947,94363.0,94360.0,0.0501]
[1735483143730,0.423894,94363.0,94360.0,0.0501]
[1735483143929,0.425894,94363.0,94360.0,0.0501]
[1735483144899,0.211951,94361.0,94360.0,0.0501]
[1735483145102,0.31593732,94361.0,94360.0,0.0501]
[1735483145714,0.31593732,94361.0,94360.0,0.0511]
[1735483146322,0.31593732,94361.0,94360.0,0.0501]
[1735483146728,0.31793732,94361.0,94360.0,0.04292396]
[1735483147225,0.31593732,94361.0,94360.0,0.04292396]
[1735483147423,0.31693732,94361.0,94360.0,0.04292396]
[1735483147927,0.32493732,94361.0,94360.0,0.04292396]
[1735483149793,0.32393732,94361.0,94360.0,0.04292396]
[1735483150216,0.32493732,94361.0,94360.0,0.04292396]
[1735483151710,0.32393732,94361.0,94360.0,0.04292396]
[1735483152119,0.31593732,94361.0,94360.0,0.04292396]
[1735483152546,0.01661784,94367.0,94360.0,0.04292396]
[1735483152749,0.218951,94361.0,94360.0,0.04292396]
[1735483153205,0.211942,94366.0,94360.0,0.04292396]
[1735483153409,0.0936059,94387.0,94360.0,0.04292396]
[1735483153633,0.10398632,94372.0,94360.0,0.04292396]
[1735483153839,0.211951,94361.0,94360.0,0.04292396]
[1735483154042,0.219951,94361.0,94360.0,0.04292396]
[1735483154217,0.008,94361.0,94360.0,0.04292396]
[1735483154964,0.007,94361.0,94360.0,0.04292396]
[1735483155769,0.007,94361.0,94360.0,0.12342396]
[1735483157004,0.211951,94361.0,94360.0,0.12342396]
[1735483157503,0.211951,94361.0,94360.0,0.12359476]
[1735483158499,0.002,94361.0,94360.0,0.12559476]
[1735483158840,0.21194,94366.0,94360.0,0.12559476]
[1735483160254,0.211951,94361.0,94360.0,0.12559476]
[1735483160700,0.002,94361.0,94360.0,0.12559476]
[1735483161221,0.211944,94365.0,94360.0,0.12559476]
[1735483161727,0.211944,94365.0,94360.0,0.12359476]
[1735483162243,0.211947,94364.0,94360.0,0.12359476]
[1735483162443,0.002,94361.0,94360.0,0.12459476]
[1735483163060,0.002,94361.0,94360.0,0.12359476]
[1735483163239,0.002,94361.0,94360.0,0.32299923]
[1735483163441,0.002,94361.0,94360.0,0.32399923]
[1735483163824,0.002,94361.0,94360.0,0.37069923]
[1735483164084,0.002,94361.0,94360.0,0.47468555]
[1735483164216,8.54e-05,94373.0,94360.0,0.47468555]
[1735483164217,8.54e-05,94373.0,94365.0,0.211941]
[1735483164415,8.54e-05,94373.0,94372.0,0.19940447]
[1735483165058,8.54e-05,94373.0,94372.0,0.24885902]
[1735483165460,8.54e-05,94373.0,94372.0,0.1]
[1735483165660,8.54e-05,94373.0,94372.0,0.19940447]
[1735483165861,8.54e-05,94373.0,94372.0,0.20140447]
[1735483166861,8.54e-05,94373.0,94372.0,0.20440447]
[1735483167064,8.54e-05,94373.0,94372.0,0.20280447]
[1735483167277,8.54e-05,94373.0,94372.0,0.23140492]
[1735483167723,8.54e-05,94373.0,94372.0,0.19980447]
[1735483167926,8.54e-05,94373.0,94372.0,0.19780447]
[1735483168355,8.54e-05,94373.0,94372.0,0.43669079]
[1735483170613,8.54e-05,94373.0,94372.0,0.38181028]
[1735483170815,8.54e-05,94373.0,94372.0,0.38681028]
[1735483171193,8.54e-05,94373.0,94372.0,0.48461475]
[1735483171423,8.54e-05,94373.0,94372.0,0.28282396]
[1735483171636,8.54e-05,94373.0,94372.0,0.27562843]
[1735483172089,8.54e-05,94373.0,94372.0,0.17782396]
[1735483172297,8.54e-05,94373.0,94372.0,0.27782396]
[1735483172507,8.54e-05,94373.0,94372.0,0.17782396]
[1735483172724,0.12528079,94373.0,94372.0,0.04792396]
[1735483172927,0.12528079,94373.0,94372.0,0.05292396]
[1735483173323,0.12528079,94373.0,94372.0,0.04792396]
[1735483173551,0.12528079,94373.0,94372.0,0.04292396]
[1735483173667,0.12022866,94373.0,94372.0,0.04292396]
[1735483173868,0.12122866,94373.0,94372.0,0.04292396]
[1735483174068,0.10498632,94373.0,94372.0,0.04292396]
[1735483175304,0.12586649,94373.0,94372.0,0.04292396]
[1735483175890,0.12486649,94373.0,94372.0,0.03792396]
[1735483176305,0.13386649,94373.0,94372.0,0.03892396]
[1735483176570,0.13386649,94373.0,94372.0,0.04092396]
[1735483176717,0.12486649,94373.0,94372.0,0.03992396]
[1735483177130,0.13186649,94373.0,94372.0,0.04092396]
[1735483177370,0.13186649,94373.0,94372.0,0.03992396]
[1735483177371,0.12486649,94373.0,94372.0,0.03992396]
[1735483177519,0.12486649,94373.0,94372.0,0.03792396]
[1735483177722,0.13186649,94373.0,94372.0,0.03892396]
[1735483179155,0.12486649,94373.0,94372.0,0.03792396]
[1735483179559,0.13086649,94373.0,94372.0,0.03792396]
[1735483180196,0.12486649,94373.0,94372.0,0.03792396]
[1735483180599,0.13386649,94373.0,94372.0,0.03792396]
[1735483180799,0.13386649,94373.0,94372.0,0.03809476]
[1735483181003,0.211951,94361.0,94360.0,0.0001708]
[1735483181326,0.31593732,94361.0,94360.0,0.0001708]
[1735483183586,0.32493732,94361.0,94360.0,0.0001708]
[1735483183997,0.31593732,94361.0,94360.0,0.0001708]
[1735483184201,0.211951,94361.0,94360.0,0.0001708]
[1735483184377,0.215951,94361.0,94360.0,0.0001708]
[1735483185484,0.217951,94361.0,94360.0,0.0001708]
[1735483185687,0.213951,94361.0,94360.0,0.0001708]
[1735483185914,0.002,94361.0,94360.0,0.17807527]
[1735483186115,0.007,94361.0,94360.0,0.17807527]
[1735483186335,0.002,94361.0,94360.0,0.0802708]
[1735483186748,0.006,94361.0,94360.0,0.0802708]
[1735483187873,0.004,94361.0,94360.0,0.0802708]
[1735483188030,0.20595,94362.0,94360.0,0.0802708]
[1735483188229,0.30993632,94362.0,94360.0,0.0802708]
[1735483189638,0.20595,94362.0,94360.0,0.0802708]
[1735483189812,0.20995,94362.0,94360.0,0.0802708]
[1735483190179,0.211931,94370.0,94363.0,0.09780447]
[1735483190373,0.211934,94369.0,94363.0,0.09780447]
[1735483190585,0.211934,94369.0,94364.0,0.0494]
[1735483191639,0.423869,94369.0,94364.0,0.0494]
[1735483193059,0.423869,94369.0,94364.0,0.0514]
[1735483193908,0.4239544,94369.0,94364.0,0.0514]
[1735483194271,8.54e-05,94369.0,94368.0,0.09780447]
[1735483195269,0.0010854,94369.0,94368.0,0.09780447]
[1735483195715,8.54e-05,94369.0,94368.0,0.09980447]
[1735483196532,0.0010854,94369.0,94368.0,0.09780447]
[1735483197109,0.0010854,94369.0,94368.0,0.09980447]
[1735483197520,0.211932,94370.0,94369.0,0.0004146]
[1735483199683,0.211916,94377.0,94369.0,0.0004146]
[1735483199859,0.211914,94378.0,94369.0,0.0014146]
[1735483200697,0.211927,94372.0,94369.0,0.0014146]
[1735483202196,0.211927,94372.0,94369.0,0.0024146]
[1735483202618,0.211914,94378.0,94377.0,0.09780447]
[1735483202819,0.211877,94394.0,94381.0,0.09780447]
[1735483203036,0.211898,94385.0,94381.0,0.09780447]
[1735483203465,0.211893,94387.0,94382.0,0.09780447]
[1735483203671,0.211877,94394.0,94390.0,0.09780447]
[1735483203869,0.211877,94394.0,94383.0,0.14560447]
[1735483203870,0.211886,94390.0,94383.0,0.14560447]
[1735483204066,0.211886,94390.0,94389.0,0.09780447]
[1735483204306,0.2119,94384.0,94377.0,0.075]
[1735483204523,0.211913,94378.0,94377.0,0.075]
[1735483204939,0.211925,94373.0,94372.0,0.1]
[1735483205139,0.42385,94373.0,94370.0,0.0478]
[1735483205345,0.42385,94373.0,94372.0,0.1]
[1735483205561,0.42385,94373.0,94369.0,0.0034146]
[1735483205562,0.52783632,94373.0,94369.0,0.0034146]
[1735483205779,0.211929,94371.0,94369.0,0.0034146]
[1735483206194,0.211929,94371.0,94369.0,0.0004146]
[1735483208236,0.211929,94371.0,94369.0,0.0034146]
[1735483209012,0.211929,94371.0,94369.0,0.0004146]
[1735483209945,0.12510473,94370.0,94369.0,0.0004146]
[1735483210168,0.211951,94361.0,94360.0,0.0001708]
[1735483210374,0.31593732,94361.0,94350.0,0.0001708]
[1735483210590,0.211965,94355.0,94350.0,0.0001708]
[1735483210787,0.31595132,94355.0,94350.0,0.0001708]
[1735483211509,0.31595132,94355.0,94354.0,0.00032349]
[1735483212102,0.31595132,94355.0,94354.0,0.00132349]
[1735483212276,0.31595132,94355.0,94354.0,0.00032349]
[1735483212617,0.31695132,94355.0,94354.0,0.00032349]
[1735483213527,0.32495132,94355.0,94354.0,0.00132349]
[1735483213936,0.34295132,94355.0,94354.0,0.00132349]
[1735483214144,0.36375168,94355.0,94354.0,0.00132349]
[1735483215121,0.36594721,94355.0,94354.0,0.00132349]
[1735483215321,0.36594721,94355.0,94350.0,0.0001708]
[1735483215322,0.00219553,94352.0,94351.0,2.9e-07]
[1735483215522,0.00219553,94352.0,94351.0,9e-08]
[1735483215523,0.10618185,94352.0,94351.0,9e-08]
[1735483215722,0.00219553,94351.0,94350.0,8.9e-07]
[1735483215971,0.31815585,94351.0,94350.0,8.9e-07]
[1735483217140,0.00219553,94340.0,94315.0,0.0001704]
[1735483217338,0.10398632,94323.0,94315.0,0.0001704]
[1735483217538,0.212077,94306.0,94303.0,0.0419975]
[1735483217802,0.10398632,94305.0,94303.0,0.1419975]
[1735483218539,0.10398632,94305.0,94303.0,0.14250678]
[1735483219163,0.10398632,94305.0,94303.0,0.04250678]
[1735483221313,0.10998632,94305.0,94303.0,0.04250678]
[1735483222339,0.006,94305.0,94304.0,0.48938447]
[1735483222473,0.006,94305.0,94304.0,0.0795]
[1735483223077,0.006,94305.0,94304.0,0.1795]
[1735483223274,0.21204,94322.0,94304.0,0.1795]
[1735483223275,0.21204,94322.0,94304.0,0.0795]
[1735483223505,0.10398632,94321.0,94304.0,0.0795]
[1735483223679,0.212065,94311.0,94304.0,0.0795]
[1735483223882,0.10398632,94310.0,94304.0,0.0795]
[1735483224482,0.002,94305.0,94304.0,0.0795]
[1735483224675,0.02106622,94311.0,94304.0,0.0795]
[1735483224866,0.12505254,94311.0,94304.0,0.0795]
[1735483225290,0.10398632,94311.0,94304.0,0.0795]
[1735483225490,0.13769697,94311.0,94304.0,0.0795]
[1735483225725,0.001,94305.0,94304.0,0.0795]
[1735483226306,0.002,94305.0,94304.0,0.0795]
[1735483226506,0.10598632,94305.0,94303.0,0.00050928]
[1735483226750,0.10398632,94304.0,94303.0,0.00050928]
[1735483226877,0.13579265,94304.0,94303.0,0.00050928]
[1735483227504,0.001,94305.0,94303.0,0.17781375]
[1735483227888,0.001,94305.0,94304.0,0.09780447]
[1735483229092,0.0215,94315.0,94303.0,0.18000928]
[1735483229297,0.31604432,94314.0,94303.0,0.18000928]
[1735483229476,0.01662659,94313.0,94303.0,0.18000928]
[1735483229678,0.12061291,94313.0,94303.0,0.18000928]
[1735483230269,0.001,94305.0,94303.0,0.27781375]
[1735483230600,0.001,94305.0,94304.0,0.09797527]
[1735483230805,0.12061291,94313.0,94304.0,0.0001708]
[1735483231007,0.10398632,94312.0,94304.0,0.0001708]
[1735483232035,0.10398632,94312.0,94305.0,0.09780447]
[1735483234136,0.10398632,94312.0,94305.0,0.09980447]
[1735483234341,0.212064,94311.0,94305.0,0.002]
[1735483234544,0.212068,94309.0,94305.0,0.002]
[1735483234739,0.212073,94307.0,94305.0,0.002]
[1735483234946,0.10398632,94306.0,94305.0,0.002]
[1735483236012,0.10398632,94306.0,94304.0,0.0001708]
[1735483236586,0.10398632,94306.0,94305.0,0.003]
[1735483237414,0.212077,94305.0,94304.0,0.0001708]
[1735483237605,0.31606332,94305.0,94304.0,0.0001708]
[1735483238022,0.31606332,94305.0,94304.0,0.0031708]
[1735483238429,0.32271107,94305.0,94304.0,0.0031708]
[1735483239256,0.00664775,94305.0,94304.0,0.10097527]
[1735483240156,0.212058,94314.0,94304.0,0.10097527]
[1735483240358,0.00664714,94305.0,94304.0,0.09797527]
[1735483240965,0.00664714,94305.0,94304.0,0.22437527]
[1735483241189,0.212034,94325.0,94304.0,0.22437527]
[1735483241389,0.003,94305.0,94304.0,0.22437527]
[1735483241769,0.003,94305.0,94304.0,0.32437527]
[1735483242356,0.212042,94321.0,94304.0,0.32737527]
[1735483242565,0.212042,94321.0,94306.0,0.1]
[1735483242971,0.01662706,94322.0,94314.0,0.09780447]
[1735483243489,0.01662706,94322.0,94314.0,0.17760447]
[1735483243740,8.54e-05,94324.0,94321.0,0.09780447]
[1735483244017,8.54e-05,94324.0,94323.0,0.09780447]
[1735483244226,8.54e-05,94324.0,94323.0,0.14440447]
[1735483244376,8.54e-05,94324.0,94323.0,0.22420447]
[1735483245228,8.54e-05,94324.0,94323.0,0.1264]
[1735483245638,8.54e-05,94324.0,94323.0,0.22420447]
[1735483246714,8.54e-05,94324.0,94323.0,0.32420447]
[1735483247762,8.54e-05,94324.0,94323.0,0.32620447]
[1735483247986,8.54e-05,94324.0,94323.0,0.22620447]
[1735483248215,8.54e-05,94324.0,94323.0,0.32720447]
[1735483248458,8.54e-05,94324.0,94323.0,0.35892492]
[1735483248616,8.54e-05,94324.0,94323.0,0.46291124]
[1735483248814,0.21196,94358.0,94351.0,0.0798]
[1735483249150,0.042471,94352.0,94351.0,0.0798]
[1735483250093,0.04255183,94352.0,94351.0,0.0798]
[1735483250855,8.083e-05,94352.0,94351.0,0.0798]
[1735483251351,0.14186762,94352.0,94323.0,0.102]
[1735483251529,0.10398632,94351.0,94330.0,0.09780447]
[1735483251922,0.211998,94341.0,94337.0,0.09780447]
[1735483252072,0.212009,94336.0,94331.0,0.0798]
[1735483252273,0.10398632,94335.0,94331.0,0.0798]
[1735483253282,0.212012,94334.0,94322.0,0.0815]
[1735483253497,0.10398632,94333.0,94322.0,0.0815]
[1735483254778,0.212032,94326.0,94322.0,0.0815]
[1735483254938,0.52805032,94326.0,94313.0,0.27930447]
[1735483255146,0.212035,94324.0,94321.0,0.09780447]
[1735483255769,0.212035,94324.0,94318.0,0.0001708]
[1735483256061,0.212035,94324.0,94321.0,0.09780447]
[1735483257259,0.31601832,94326.0,94321.0,0.09780447]
[1735483257514,0.31601832,94326.0,94321.0,0.09980447]
[1735483257699,0.212012,94334.0,94327.0,0.09780447]
[1735483257885,0.10398632,94333.0,94327.0,0.09780447]
[1735483258087,0.212017,94332.0,94327.0,0.09780447]
[1735483258348,0.02130809,94339.0,94321.0,0.002]
[1735483258349,0.212003,94338.0,94331.0,0.09780447]
[1735483258559,0.02130809,94339.0,94337.0,0.09780447]
[1735483259191,0.23331009,94339.0,94337.0,0.09780447]
[1735483260534,0.24993356,94339.0,94337.0,0.09780447]
[1735483261182,0.24993356,94339.0,94334.0,0.09780447]
[1735483261388,0.10398632,94338.0,94332.0,0.0815]
[1735483261966,0.212008,94336.0,94323.0,0.0815]
[1735483262178,0.212027,94328.0,94323.0,0.0815]
[1735483263036,0.212012,94334.0,94328.0,0.09780447]
[1735483263951,0.424025,94334.0,94328.0,0.09780447]
[1735483264348,0.212023,94330.0,94323.0,0.0815]
[1735483264543,0.212012,94334.0,94323.0,0.0815]
[1735483264755,0.12626056,94333.0,94328.0,0.001]
[1735483265357,0.212019,94331.0,94328.0,0.001]
[1735483265594,0.31600532,94331.0,94328.0,0.001]
[1735483266230,0.52802432,94331.0,94328.0,0.001]
[1735483267344,0.01073038,94339.0,94328.0,0.09880447]
[1735483267500,0.10398632,94338.0,94329.0,0.22751715]
[1735483267679,0.10398632,94338.0,94329.0,0.09780447]
[1735483268085,0.212008,94336.0,94329.0,0.09780447]
[1735483268470,0.424017,94336.0,94329.0,0.09780447]
[1735483268899,0.212018,94332.0,94329.0,0.09780447]
[1735483269133,0.212018,94332.0,94326.0,0.0489]
[1735483269306,0.212018,94332.0,94329.0,0.09780447]
[1735483269906,0.22864202,94332.0,94329.0,0.09780447]
[1735483270115,0.01662402,94332.0,94331.0,0.09780447]
[1735483271768,0.01662402,94332.0,94329.0,0.001]
[1735483272349,0.01662402,94332.0,94328.0,0.09780447]
[1735483272717,0.01662402,94332.0,94331.0,0.002]
[1735483273766,0.212013,94334.0,94331.0,0.002]
[1735483274555,0.424026,94334.0,94331.0,0.002]